[Event "WSTCC-65 2024"]
[Site "Krakow"]
[Date "2024.07.07"]
[Round "6.6"]
[White "Baum, Bernd"]
[Black "Miltner, Arndt"]
[Result "1/2-1/2"]
[ECO "A20"]
[WhiteElo "2203"]
[BlackElo "2259"]
[Annotator "TA"]
[PlyCount "31"]
[EventDate "2024.07.01"]
[EventType "team-tourn"]
[EventCountry "POL"]
[SourceTitle "playchess.com"]
[Source "ChessBase"]
[SourceQuality "1"]
[TimeControl "40/5400+30:1800+30"]

{[%evp 9,31,-2,4,-21,39,0,14,1,20,14,20,-20,-8,-52,-14,-22,-17,-56,-59,-57,-46,-70,-66,-69]} 1. c4 {[%emt 0:00:10]} e5 {[%emt 0:00:17]} 2. g3 {[%emt 0:00:10]} Nf6 {[%emt 0:00:16]} 3. Bg2 {[%emt 0:00:06]} c6 {[%emt 0:00:29]} 4. d4 {[%emt 0:00:08][%cal Bd2d4,Bd4d5][%mdl 32]} e4 {[%emt 0:00:47]} 5. d5 {[%emt 0:01:30]} Bb4+ {[%emt 0:00:45]} 6. Nc3 {[%emt 0:01:18]} Qe7 {[%emt 0:04:56]} (6... O-O $11) 7. Nh3 {[%emt 0:01:28]} d6 {[%emt 0:04:37]} 8. O-O {[%emt 0:00:29] The position is equal.} O-O {[%emt 0:01:12]} 9. Bd2 {[%emt 0:13:49][%cal Oc3e4]} cxd5 {[%emt 0:08:57]} 10. cxd5 {[%emt 0:02:36][%cal Oc3e4]} Bf5 {[%emt 0:03:37]} 11. Qb3 {[%emt 0:13:18]} ({Don't go for} 11. Nxe4 $2 Bxe4 12. Bxb4 Bxg2 (12... Nxd5 $2 {too greedy.} 13. Bxd6 Qxd6 14. Bxe4 $18) 13. Kxg2 Qe4+ 14. Kg1 Qxb4 $19) 11... Na6 {[%emt 0:04:16]} 12. Bg5 {[%emt 0:05:15]} Rfe8 {[%emt 0:01:35]} 13. Rac1 {[%emt 0:07:26]} h6 {[%emt 0:07:02] Black is slightly better.} 14. Bxf6 {[%emt 0:02:23]} Qxf6 {[%emt 0:00:04]} 15. e3 {[%emt 0:11:06]} Bxc3 {[%emt 0:04:02]} 16. Qxc3 {[%emt 0:01:33] Weighted Error Value: White=0.23 (precise) /Black=0.19 (very precise) .  Mistake:       	---       	Black=1      Inaccurate:     	White=4     	Black=1      OK:         	White=3     	Black=1      Best:        	---       	Black=1} 1/2-1/2

[Event "WSTCC-65 2024"]
[Site "Krakow"]
[Date "2024.07.07"]
[Round "6.6"]
[White "Goldmane, Astra"]
[Black "Dovzhenko, Viktor"]
[Result "1/2-1/2"]
[ECO "B06"]
[WhiteElo "1989"]
[BlackElo "2044"]
[Annotator "RC"]
[PlyCount "123"]
[EventDate "2024.07.01"]
[EventType "team-tourn"]
[EventCountry "POL"]
[SourceTitle "playchess.com"]
[Source "ChessBase"]
[SourceQuality "1"]
[TimeControl "40/5400+30:1800+30"]

1. e4 {[%emt 0:00:04]} g6 {[%emt 0:00:16]} 2. d4 {[%emt 0:00:13]} a6 {[%emt 0:00:50]} 3. c4 {[%emt 0:00:47]} c6 {[%emt 0:00:44]} 4. Nc3 {[%emt 0:01:51]} b5 {[%emt 0:01:24]} 5. a3 {[%emt 0:03:53]} Bg7 {[%emt 0:03:04]} 6. Be3 {[%emt 0:00:44]} d6 {[%emt 0:03:34]} 7. Qd2 {[%emt 0:03:03]} h5 {[%emt 0:06:11]} 8. h3 {[%emt 0:23:44]} Nf6 {[%emt 0:02:31]} 9. Nf3 {[%emt 0:00:58]} bxc4 {[%emt 0:06:39]} 10. Bxc4 {[%emt 0:03:52]} d5 {[%emt 0:08:05]} 11. exd5 {[%emt 0:01:06]} cxd5 {[%emt 0:03:23]} 12. Bd3 {[%emt 0:06:30]} Nbd7 {[%emt 0:02:25]} 13. O-O {[%emt 0:06:38]} Bb7 {[%emt 0:02:28]} 14. Ng5 {[%emt 0:09:18]} e5 {[%emt 0:05:57]} 15. dxe5 {[%emt 0:11:25]} Nxe5 {[%emt 0:00:33]} 16. Bc5 {[%emt 0:01:09]} Nfd7 {[%emt 0:03:54]} 17. Bd4 {[%emt 0:03:07]} O-O 18. Be2 {[%emt 0:00:43]} Rc8 {[%emt 0:15:39]} 19. Rad1 {[%emt 0:01:08]} Nc5 {[%emt 0:01:04]} 20. Bxc5 {[%emt 0:09:28]} Rxc5 {[%emt 0:00:29]} 21. Nf3 {[%emt 0:00:01]} d4 {[%emt 0:06:52]} 22. Nxd4 {[%emt 0:04:01]} Qa8 {[%emt 0:00:22]} 23. f3 {[%emt 0:02:18]} Kh7 {[%emt 0:06:37]} 24. Nb3 {[%emt 0:00:24]} Nc4 {[%emt 0:01:55]} 25. Bxc4 {[%emt 0:01:04]} Rxc4 {[%emt 0:00:18]} 26. Qe2 {[%emt 0:00:17]} Rc6 {[%emt 0:03:16]} 27. Ne4 {[%emt 0:00:22]} Rb6 {[%emt 0:01:23]} 28. Qc4 {[%emt 0:01:21]} a5 {[%emt 0:01:50]} 29. Ng5+ Kg8 {[%emt 0:00:25]} 30. Nc5 {[%emt 0:01:22]} Qc8 {[%emt 0:04:02]} 31. b3 {[%emt 0:01:31]} Rc6 {[%emt 0:01:02]} 32. b4 {[%emt 0:02:05]} Ba6 {[%emt 0:00:37]} 33. Qd5 {[%emt 0:00:03]} Bxf1 {[%emt 0:00:36]} 34. Kxf1 {[%emt 0:00:01]} axb4 {[%emt 0:04:36]} 35. axb4 {[%emt 0:00:01]} Rc7 {[%emt 0:00:39]} 36. Nd7 {[%emt 0:00:38]} Rxd7 {[%emt 0:00:58]} 37. Qxd7 {[%emt 0:00:02]} Qc4+ {[%emt 0:00:24]} 38. Kg1 {[%emt 0:01:32]} Qxb4 {[%emt 0:00:02]} 39. Qd5 {[%emt 0:00:17]} Qf4 {[%emt 0:00:30]} 40. Qd2 {[%emt 0:02:09]} Qa4 {[%emt 0:02:23]} 41. Ne4 {[%emt 0:06:23]} Rb8 {[%emt 0:03:01]} 42. Kh1 {[%emt 0:04:56]} Be5 {[%emt 0:06:43]} 43. Rc1 {[%emt 0:08:12]} Kg7 {[%emt 0:01:15]} 44. Qg5 {[%emt 0:05:03]} Rb5 {[%emt 0:01:48]} 45. Ng3 {[%emt 0:03:43]} Bxg3 {[%emt 0:17:43]} 46. Qxg3 {[%emt 0:00:02]} Qd4 {[%emt 0:00:23]} 47. Qc7 {[%emt 0:00:28]} Rb3 {[%emt 0:00:32]} 48. Qc5 {[%emt 0:00:43]} Qf6 {[%emt 0:00:41]} 49. Re1 {[%emt 0:01:03]} Kh7 {[%emt 0:01:07]} 50. Qe5 {[%emt 0:00:20]} Qxe5 {[%emt 0:01:09]} 51. Rxe5 {[%emt 0:00:01]} h4 {[%emt 0:00:33]} 52. Re4 {[%emt 0:00:56]} g5 {[%emt 0:00:16]} 53. Rg4 {[%emt 0:00:34]} f6 {[%emt 0:00:09]} 54. Rc4 {[%emt 0:01:21]} Kg6 {[%emt 0:00:17]} 55. f4 {[%emt 0:00:27]} Rb2 {[%emt 0:01:42]} 56. fxg5 {[%emt 0:00:20]} fxg5 {[%emt 0:00:02]} 57. Rc5 {[%emt 0:00:10]} Rf2 {[%emt 0:00:35]} 58. Kg1 {[%emt 0:00:18]} Rf6 {[%emt 0:00:28]} 59. g3 {[%emt 0:01:40]} hxg3 {[%emt 0:00:30]} 60. Kg2 {[%emt 0:00:02]} Rb6 {[%emt 0:00:29]} 61. Kxg3 {[%emt 0:00:35]} Kh5 {[%emt 0:00:02]} 62. Rc3 {[%emt 0:00:17]} 1/2-1/2

[Event "WSTCC-65 2024"]
[Site "Krakow"]
[Date "2024.07.07"]
[Round "6.7"]
[White "Legky, Nikolay A"]
[Black "Lanc, Alois"]
[Result "1/2-1/2"]
[ECO "E90"]
[WhiteElo "2339"]
[BlackElo "2256"]
[Annotator "TA"]
[PlyCount "62"]
[EventDate "2024.07.01"]
[EventType "team-tourn"]
[EventCountry "POL"]
[SourceTitle "playchess.com"]
[Source "ChessBase"]
[SourceQuality "1"]
[TimeControl "40/5400+30:1800+30"]

{[%evp 15,62,15,32,31,42,27,16,13,20,-61,-52,-41,-43,-121,-117,-117,-124,-214,-233,-318,-93,-82,-74,-114,-113,-122,-117,-118,-114,-125,-94,-105,-89,-108,-102,-62,-65,-135,-52,-74,-20,-18,-25,-8,0,0,0,0,0]} 1. d4 {[%emt 0:00:03]} Nf6 {[%emt 0:00:05]} 2. c4 {[%emt 0:00:08]} g6 {[%emt 0:00:10]} 3. Nc3 {[%emt 0:00:07]} Bg7 {[%emt 0:00:07]} 4. e4 {[%emt 0:00:07]} d6 {[%emt 0:00:05]} 5. Nf3 {[%emt 0:02:15]} O-O {[%emt 0:00:16]} 6. h3 {[%emt 0:00:02]} e5 {[%emt 0:00:36]} 7. d5 {[%emt 0:00:04]} Nh5 {[%emt 0:03:51]} 8. Nh2 {[%emt 0:12:53]} a5 9. g3 {[%emt 0:04:19]} Na6 {[%emt 0:04:04]} 10. Be3 {[%emt 0:14:29]} Nc5 {[%emt 0:04:52]} 11. Ng4 {[%emt 0:07:01]} Kh8 {[%emt 0:12:00]} 12. Be2 {[%emt 0:00:46]} (12. Bxc5 $11 dxc5 13. Ne3) 12... f5 $15 {[%emt 0:05:41]} 13. exf5 {[%emt 0:04:54]} gxf5 {[%emt 0:09:10]} 14. Nxe5 {[%emt 0:00:05]} Nxg3 $17 {[%emt 0:00:18]} 15. fxg3 {[%emt 0:03:56]} Bxe5 {[%emt 0:04:08]} 16. Bf2 {[%emt 0:01:29]} (16. Qd2 $17 {was called for.}) 16... Qf6 $19 {[%emt 0:06:23] [#] Strongly threatening ...f4.} 17. Qd2 {[%emt 0:08:37]} Ne4 $2 {[%emt 0:08:15]} (17... f4 $19 {is more deadly.} 18. g4 a4 (18... f3 $2 19. Bd3 $19)) 18. Nxe4 $17 {[%emt 0:07:56]} fxe4 {[%emt 0:00:03]} 19. O-O-O {[%emt 0:00:05][%cal Be1c1,Bc1b2,Bb2c3,Bc3d4,Bd4e3][%mdl 32]} Bxb2+ {[%emt 0:08:29]} 20. Qxb2 {[%emt 0:00:04]} Qxb2+ {[%emt 0:00:07]} 21. Kxb2 {[%emt 0:00:01]} Rxf2 {[%emt 0:00:18]} 22. Rde1 {[%emt 0:00:02]} Kg7 {[%emt 0:02:21]} 23. Kc3 {[%emt 0:00:04]} Rg2 {[%emt 0:02:52]} 24. g4 {[%emt 0:04:20]} Rg3+ {[%emt 0:02:31]} 25. Kd4 {[%emt 0:00:04][%cal Oe2d1]} Bd7 {[%emt 0:00:40] Threatens to win with ...c5+.} 26. Bd1 {[%emt 0:00:47] [#]} (26. Rb1 $15) 26... c5+ {[%emt 0:01:14]} ({Black should play} 26... Rd3+ $1 $17 27. Kxe4 Rxh3) 27. dxc6 $1 $15 {[%emt 0:07:04]} Bxc6 {[%emt 0:00:07]} (27... bxc6 $17 {And now ...Re8 would win.} 28. Kxe4 Rf8) 28. Re3 $11 {[%emt 0:00:04]} Rxe3 {[%emt 0:07:24]} 29. Kxe3 {[%emt 0:00:01]} b5 {[%emt 0:00:28] The position is equal.} 30. cxb5 {[%emt 0:01:33]} Bxb5 {[%emt 0:00:02]} 31. Bb3 {[%emt 0:00:05]} Rc8 {[%emt 0:03:27] Weighted Error Value: White=0.26 (precise) /Black=0.31.  Missed win:     	---       	Black=1      Mistake:       	White=4     	Black=2      Inaccurate:     	White=2     	---        OK:         	White=9     	Black=8      Best:        	White=1     	Black=2      Strong:       	White=1     	---} 1/2-1/2

[Event "WSTCC-65 2024"]
[Site "Krakow"]
[Date "2024.07.07"]
[Round "6.7"]
[White "Wenner, Tobias"]
[Black "Glaessl, Matthias"]
[Result "1-0"]
[ECO "A05"]
[WhiteElo "2090"]
[BlackElo "2196"]
[Annotator "RC"]
[PlyCount "85"]
[EventDate "2024.07.01"]
[EventType "team-tourn"]
[EventCountry "POL"]
[SourceTitle "playchess.com"]
[Source "ChessBase"]
[SourceQuality "1"]
[TimeControl "40/5400+30:1800+30"]

1. Nf3 {[%emt 0:00:02]} Nf6 {[%emt 0:00:06]} 2. c4 {[%emt 0:00:14]} b6 {[%emt 0:00:08]} 3. g3 {[%emt 0:00:39]} Bb7 {[%emt 0:00:07]} 4. Bg2 {[%emt 0:00:06]} g6 {[%emt 0:00:08]} 5. d4 {[%emt 0:01:46]} Bg7 {[%emt 0:00:08]} 6. O-O {[%emt 0:00:29]} O-O {[%emt 0:00:17]} 7. Nc3 {[%emt 0:00:16]} Ne4 {[%emt 0:00:10]} 8. Bd2 {[%emt 0:05:37]} d6 {[%emt 0:06:05]} 9. Nxe4 {[%emt 0:02:09]} Bxe4 {[%emt 0:00:02]} 10. Bc3 {[%emt 0:00:17]} Nd7 {[%emt 0:02:05]} 11. Rc1 {[%emt 0:08:25]} a5 {[%emt 0:06:10]} 12. b3 {[%emt 0:05:49]} e6 {[%emt 0:05:23]} 13. d5 {[%emt 0:06:36]} e5 {[%emt 0:06:36]} 14. Nxe5 {[%emt 0:04:20]} Bxe5 {[%emt 0:02:51]} 15. Bxe4 {[%emt 0:01:10]} Bxc3 {[%emt 0:05:50]} 16. Rxc3 {[%emt 0:00:11]} f5 {[%emt 0:00:09]} 17. Bg2 {[%emt 0:01:57]} Qf6 {[%emt 0:00:34]} 18. Re3 {[%emt 0:03:54]} Rae8 {[%emt 0:00:32]} 19. Rxe8 {[%emt 0:06:20]} Rxe8 {[%emt 0:00:07]} 20. Qd2 {[%emt 0:00:37]} Nc5 {[%emt 0:03:27]} 21. e3 {[%emt 0:04:07]} Ne4 {[%emt 0:09:08]} 22. Qc2 {[%emt 0:06:27]} h5 {[%emt 0:02:27]} 23. h4 {[%emt 0:01:52]} Re7 {[%emt 0:02:18]} 24. Bxe4 {[%emt 0:07:42]} fxe4 {[%emt 0:00:26]} 25. Qe2 {[%emt 0:01:02]} Qe5 {[%emt 0:02:19]} 26. Kg2 {[%emt 0:03:33]} Rf7 {[%emt 0:03:08]} 27. f4 {[%emt 0:00:55]} Qf5 {[%emt 0:02:41]} 28. Rd1 {[%emt 0:04:30]} Re7 {[%emt 0:00:31]} 29. Rd4 {[%emt 0:00:41]} Qg4 {[%emt 0:04:21]} 30. Qxg4 {[%emt 0:01:11]} hxg4 {[%emt 0:00:02]} 31. Rd1 {[%emt 0:02:20]} Kf7 {[%emt 0:00:24]} 32. Rh1 {[%emt 0:02:13]} Kf6 {[%emt 0:00:46]} 33. h5 {[%emt 0:02:36]} g5 {[%emt 0:00:15]} 34. Kf2 {[%emt 0:03:32]} Rh7 {[%emt 0:02:38]} 35. Ke2 {[%emt 0:00:56]} Rh6 {[%emt 0:01:03]} 36. Kd2 {[%emt 0:00:40]} Rh7 {[%emt 0:02:25]} 37. h6 {[%emt 0:05:41]} Kg6 {[%emt 0:02:07]} 38. Kc3 {[%emt 0:00:13]} gxf4 {[%emt 0:00:05]} 39. exf4 {[%emt 0:00:41]} e3 {[%emt 0:00:08]} 40. Kd3 {[%emt 0:01:02]} e2 {[%emt 0:00:08]} 41. Kxe2 {[%emt 0:30:31]} Re7+ {[%emt 0:30:06]} 42. Kd2 {[%emt 0:01:02]} Rh7 {[%emt 0:01:07]} 43. Re1 {[%emt 0:01:36]} 1-0

[Event "WSTCC-65 2024"]
[Site "Krakow"]
[Date "2024.07.07"]
[Round "6.7"]
[White "Karnaukh, Anatolij"]
[Black "Ungure, Liga"]
[Result "1/2-1/2"]
[ECO "A02"]
[WhiteElo "1970"]
[BlackElo "1970"]
[Annotator "NA RC"]
[PlyCount "52"]
[EventDate "2024.07.01"]
[EventType "team-tourn"]
[EventCountry "POL"]
[SourceTitle "playchess.com"]
[Source "ChessBase"]
[SourceQuality "1"]
[TimeControl "40/5400+30:1800+30"]

1. f4 {[%emt 0:00:03]} Nf6 {[%emt 0:04:57]} 2. Nf3 {[%emt 0:00:09]} g6 {[%emt 0:01:07]} 3. g3 {[%emt 0:03:48]} d5 {[%emt 0:02:58]} 4. Bg2 {[%emt 0:00:08]} Bg7 {[%emt 0:00:09]} 5. O-O {[%emt 0:01:00]} c5 {[%emt 0:02:15]} 6. d3 {[%emt 0:00:20]} O-O {[%emt 0:01:03]} 7. Qe1 {[%emt 0:01:06]} d4 {[%emt 0:02:45]} 8. h3 {[%emt 0:07:48]} Nc6 {[%emt 0:01:50]} 9. Qf2 {[%emt 0:01:53]} Nd5 {[%emt 0:04:43]} 10. Bd2 {[%emt 0:01:25]} Ne3 {[%emt 0:07:03]} 11. Rc1 {[%emt 0:00:08]} Qb6 {[%emt 0:10:08]} 12. b3 {[%emt 0:04:16]} Nb4 {[%emt 0:07:29]} 13. Ne1 {[%emt 0:05:38]} Be6 {[%emt 0:07:35]} 14. c4 {[%emt 0:02:43]} a5 {[%emt 0:09:54]} 15. a4 {[%emt 0:02:31]} Nc6 {[%emt 0:01:29]} 16. Na3 {[%emt 0:00:10]} Nxg2 {[%emt 0:08:08]} 17. Qxg2 {[%emt 0:03:49]} Nb4 {[%emt 0:00:12]} 18. Nb5 {[%emt 0:00:40]} Bd7 {[%emt 0:00:27]} 19. Kh2 {[%emt 0:01:13]} e5 {[%emt 0:01:49]} 20. fxe5 {[%emt 0:01:31]} Bxe5 {[%emt 0:00:16]} 21. Nf3 {[%emt 0:00:08]} Bg7 {[%emt 0:00:49]} 22. Bf4 {[%emt 0:06:08]} Bxb5 {[%emt 0:00:29]} 23. axb5 {[%emt 0:00:30]} Rae8 {[%emt 0:01:38]} 24. g4 {[%emt 0:07:44]} f5 {[%emt 0:00:40]} 25. g5 {[%emt 0:00:16]} Qe6 {[%emt 0:03:21]} 26. Ng1 {[%emt 0:02:59]} Be5 1/2-1/2

[Event "WSTCC-65 2024"]
[Site "Krakow"]
[Date "2024.07.07"]
[Round "6.8"]
[White "Petran, Peter"]
[Black "Roos, Louis"]
[Result "0-1"]
[ECO "A00"]
[WhiteElo "2195"]
[BlackElo "2288"]
[Annotator "TA"]
[PlyCount "74"]
[EventDate "2024.07.01"]
[EventType "team-tourn"]
[EventCountry "POL"]
[SourceTitle "playchess.com"]
[Source "ChessBase"]
[SourceQuality "1"]
[TimeControl "40/5400+30:1800+30"]

{[%evp 9,74,8,11,0,0,0,24,10,12,-13,-14,-10,-9,0,-7,-14,0,-18,0,0,26,0,57,31,32,30,19,0,0,-49,-58,-50,-46,-103,-98,-102,-28,-102,-93,-139,-137,-192,-177,-250,-246,-236,-241,-254,-235,-593,-544,-577,-529,-560,-506,-1183,-1110,-1098,-1013,-2143,-2139,-1462,-1453,-5681,-5621,-29995,-29996]} 1. g3 {[%emt 0:00:05]} e5 {[%emt 0:00:43]} 2. c4 {[%emt 0:00:07]} Nf6 {[%emt 0:00:29]} 3. Bg2 {[%emt 0:00:06]} Nc6 {[%emt 0:03:14]} 4. Nc3 {[%emt 0:00:19]} Bb4 {[%emt 0:03:15]} 5. Nd5 {[%emt 0:00:16]} O-O {[%emt 0:02:20]} 6. Nxb4 {[%emt 0:01:46]} Nxb4 {[%emt 0:00:12]} 7. d3 {[%emt 0:01:34]} Re8 {[%emt 0:03:06]} 8. a3 {[%emt 0:04:54] White has an edge.} Nc6 {[%emt 0:01:10]} 9. b4 {[%emt 0:00:08]} d5 {[%emt 0:11:50]} 10. cxd5 {[%emt 0:02:16]} Nxd5 {[%emt 0:00:22]} 11. Bb2 {[%emt 0:00:27]} a5 {[%emt 0:04:27]} 12. bxa5 {[%emt 0:15:13]} Rxa5 {[%emt 0:13:48]} 13. Nf3 {[%emt 0:01:46]} Nd4 {[%emt 0:12:03]} 14. O-O {[%emt 0:02:14][%cal Of3e5]} Bg4 {[%emt 0:02:22]} 15. Re1 {[%emt 0:10:56]} Nb6 {[%emt 0:13:03]} (15... c5 $11) 16. Bc3 {[%emt 0:07:11]} Ra7 {[%emt 0:08:13]} 17. a4 {[%emt 0:00:44]} (17. Nxd4 {simplifies} exd4 18. Bd2 Nd7 19. a4) 17... Nd5 {[%emt 0:02:53]} 18. Bb2 {[%emt 0:03:33][%cal Of3e5] [#] Nxe5! would now be deadly. A strong pair of Bishops.} c5 {[%emt 0:00:56]} 19. Nd2 {[%emt 0:03:13]} (19. Nxd4 $11 cxd4 20. Qd2) 19... Nb4 $15 {[%emt 0:01:01] Hoping for ...Nxd3.} 20. Bxd4 {[%emt 0:19:51]} exd4 {[%emt 0:00:09]} 21. Bf3 {[%emt 0:03:15]} ({White should try} 21. Nb3 $15) 21... Bxf3 $17 {[%emt 0:01:53]} 22. Nxf3 {[%emt 0:00:03]} Nd5 {[%emt 0:02:25] Black is much more active.} (22... h6 $17 23. Qb3 b6) 23. Qb3 {[%emt 0:00:46]} (23. Qc1 $1 $11 Ra5 24. Nd2) 23... b6 {[%emt 0:00:27]} 24. Qc4 {[%emt 0:06:25]} (24. Nd2 $142) 24... Qa8 {[%emt 0:02:17]} 25. a5 {[%emt 0:03:49]} (25. Nh4 $17 {is a better defense.}) 25... Nc3 $19 {[%emt 0:00:41]} ({Inferior is} 25... bxa5 26. Qxc5 a4 27. Nxd4 $14 (27. Qxd4 a3 $11)) 26. e4 {[%emt 0:02:56]} (26. Kg2 $142) 26... Rxa5 {[%emt 0:00:33]} ({And not} 26... bxa5 27. Qxc5 a4 28. Nxd4 $14 (28. Qxd4 Rc7 $14)) 27. Rxa5 {[%emt 0:04:38]} Qxa5 {[%emt 0:00:03]} 28. Kg2 {[%emt 0:02:54]} Qa3 {[%emt 0:03:47] [#] And now ...b5 would win.} 29. Ng5 $2 {[%emt 0:01:33]} (29. Nd2 {was the crucial defense.}) 29... Rf8 {[%emt 0:01:11]} 30. Ne6 {[%emt 0:00:46]} fxe6 {[%emt 0:00:34]} 31. Qxe6+ {[%emt 0:00:04]} Kh8 {[%emt 0:00:22]} 32. Qxb6 {[%emt 0:00:03]} (32. Qd6 $142 Qa8 33. Rf1) 32... Qa2 {[%emt 0:03:40]} 33. Rf1 {[%emt 0:00:14]} Qe2 {[%emt 0:00:37]} 34. Qxc5 {[%emt 0:00:46]} Qf3+ {[%emt 0:00:09]} 35. Kh3 {[%emt 0:00:11]} Ne2 {[%emt 0:00:05]} 36. Kh4 {[%emt 0:01:28]} h6 {[%emt 0:00:13] ( -> ...g5+)} 37. g4 {[%emt 0:01:39]} g5+ {[%emt 0:00:32] Weighted Error Value: White=0.86/Black=0.13 (very precise) .  Mistake:       	White=8     	Black=2      Inaccurate:     	White=2     	Black=1      OK:         	White=4     	Black=9      Best:        	White=2     	Black=5} 0-1

[Event "WSTCC-65 2024"]
[Site "Krakow"]
[Date "2024.07.07"]
[Round "6.8"]
[White "Schulz, Michael"]
[Black "Staub, Gerhard"]
[Result "0-1"]
[ECO "D00"]
[WhiteElo "2109"]
[BlackElo "2089"]
[Annotator "RC"]
[PlyCount "50"]
[EventDate "2024.07.01"]
[EventType "team-tourn"]
[EventCountry "POL"]
[SourceTitle "playchess.com"]
[Source "ChessBase"]
[SourceQuality "1"]
[TimeControl "40/5400+30:1800+30"]

1. d4 {[%emt 0:00:03]} d5 {[%emt 0:00:12]} 2. Bf4 {[%emt 0:00:27]} Nf6 {[%emt 0:00:28]} 3. e3 {[%emt 0:00:13]} Bf5 {[%emt 0:00:47]} 4. c4 {[%emt 0:01:21]} c6 {[%emt 0:03:01]} 5. Nc3 {[%emt 0:01:31]} e6 {[%emt 0:02:04]} 6. Qb3 {[%emt 0:01:58]} Qb6 {[%emt 0:02:08]} 7. c5 {[%emt 0:01:26]} Qxb3 8. axb3 Nbd7 {[%emt 0:02:32]} 9. b4 {[%emt 0:00:46]} Ne4 {[%emt 0:06:45]} 10. Nge2 {[%emt 0:11:31]} f6 {[%emt 0:02:13]} 11. f3 {[%emt 0:01:43]} Nxc3 {[%emt 0:01:13]} 12. Nxc3 {[%emt 0:00:06]} e5 {[%emt 0:00:49]} 13. Bg3 {[%emt 0:01:06]} Be7 {[%emt 0:10:11]} 14. b5 {[%emt 0:03:55]} O-O {[%emt 0:01:45]} 15. Kd2 {[%emt 0:07:12]} Bxc5 {[%emt 0:06:57]} 16. dxc5 {[%emt 0:04:05]} Nxc5 {[%emt 0:00:16]} 17. Ra3 {[%emt 0:01:23]} a6 {[%emt 0:04:47]} 18. b4 {[%emt 0:06:21]} axb5 {[%emt 0:04:00]} 19. Rxa8 {[%emt 0:01:11]} Nb3+ {[%emt 0:00:40]} 20. Ke2 {[%emt 0:07:49]} Rxa8 {[%emt 0:00:11]} 21. Be1 {[%emt 0:01:31]} d4 {[%emt 0:01:54]} 22. exd4 {[%emt 0:02:33]} exd4 {[%emt 0:01:04]} 23. Ne4 {[%emt 0:00:51]} Ra2+ {[%emt 0:05:12]} 24. Kd3 {[%emt 0:01:40]} b6 {[%emt 0:01:06]} 25. g4 {[%emt 0:02:30]} c5 {[%emt 0:00:49]} 0-1

[Event "WSTCC-65 2024"]
[Site "Krakow"]
[Date "2024.07.07"]
[Round "6.8"]
[White "Priedite, Ingrida"]
[Black "Malienko, Alexander"]
[Result "1/2-1/2"]
[ECO "A20"]
[WhiteElo "2044"]
[BlackElo "1904"]
[Annotator "RC"]
[PlyCount "92"]
[EventDate "2024.07.01"]
[EventType "team-tourn"]
[EventCountry "POL"]
[SourceTitle "playchess.com"]
[Source "ChessBase"]
[SourceQuality "1"]
[TimeControl "40/5400+30:1800+30"]

1. c4 {[%emt 0:00:04]} e5 {[%emt 0:00:06]} 2. g3 {[%emt 0:00:19]} Nf6 {[%emt 0:00:11]} 3. Bg2 {[%emt 0:00:45]} d5 {[%emt 0:00:32]} 4. cxd5 {[%emt 0:00:18]} Nxd5 {[%emt 0:00:14]} 5. Nc3 {[%emt 0:00:16]} Nb6 {[%emt 0:00:30]} 6. e3 {[%emt 0:01:47]} Be7 {[%emt 0:01:47]} 7. Nge2 {[%emt 0:00:42]} O-O {[%emt 0:01:14]} 8. f4 {[%emt 0:01:06]} N8d7 {[%emt 0:04:17]} 9. O-O {[%emt 0:02:07]} f5 {[%emt 0:03:39]} 10. fxe5 {[%emt 0:08:37]} Nxe5 {[%emt 0:00:13]} 11. d4 {[%emt 0:01:09]} Nec4 {[%emt 0:05:14]} 12. b3 {[%emt 0:02:47]} Nd6 {[%emt 0:00:19]} 13. Nf4 {[%emt 0:03:58]} c6 {[%emt 0:02:40]} 14. Bb2 {[%emt 0:02:36]} Bf6 {[%emt 0:06:08]} 15. Qc2 {[%emt 0:12:44]} Qe7 {[%emt 0:03:25]} 16. Rae1 {[%emt 0:01:27]} Re8 {[%emt 0:01:31]} 17. d5 {[%emt 0:03:25]} c5 {[%emt 0:07:27]} 18. Nd1 {[%emt 0:05:16]} c4 {[%emt 0:03:47]} 19. Bxf6 {[%emt 0:07:00]} Qxf6 {[%emt 0:01:48]} 20. Nb2 {[%emt 0:06:09]} Bd7 {[%emt 0:05:57]} 21. bxc4 {[%emt 0:04:04]} Nbxc4 {[%emt 0:07:08]} 22. Nxc4 {[%emt 0:00:42]} Rec8 {[%emt 0:01:40]} 23. Qb2 {[%emt 0:02:24]} Rxc4 {[%emt 0:00:50]} 24. Qxf6 {[%emt 0:00:09]} gxf6 {[%emt 0:00:14]} 25. Rf2 {[%emt 0:03:35]} Rac8 {[%emt 0:00:30]} 26. Rb2 {[%emt 0:02:39]} Rc2 {[%emt 0:01:24]} 27. Reb1 {[%emt 0:03:57]} R8c3 {[%emt 0:01:31]} 28. Rxc2 {[%emt 0:01:20]} Rxc2 {[%emt 0:00:10]} 29. Ne6 {[%emt 0:06:18]} Bc8 {[%emt 0:10:39]} 30. a4 {[%emt 0:03:14]} Kf7 {[%emt 0:01:34]} 31. Nd4 {[%emt 0:03:55]} Ra2 {[%emt 0:03:32]} 32. Nb5 {[%emt 0:01:17]} Nxb5 {[%emt 0:00:58]} 33. axb5 {[%emt 0:02:25]} Ke7 {[%emt 0:02:28]} 34. Rc1 {[%emt 0:01:11]} Kd8 {[%emt 0:00:10]} 35. d6 {[%emt 0:05:03]} Rd2 {[%emt 0:00:37]} 36. Rc7 {[%emt 0:00:21]} Rxd6 {[%emt 0:00:12]} 37. Rxh7 {[%emt 0:00:07]} Rd7 {[%emt 0:05:09]} 38. Rh8+ {[%emt 0:00:32]} Kc7 {[%emt 0:00:32]} 39. h4 {[%emt 0:00:31]} Rg7 {[%emt 0:00:31]} 40. Kf2 {[%emt 0:00:43]} Bd7 {[%emt 0:00:09]} 41. Bf1 {[%emt 0:30:43]} Kb6 {[%emt 0:30:17]} 42. Rf8 {[%emt 0:00:00]} Bxb5 {[%emt 0:00:00]} 43. Bxb5 {[%emt 0:00:00]} Kxb5 44. Rxf6 a5 45. Rxf5+ Kb4 46. h5 a4 1/2-1/2